[Event "Titled Tuesday Blitz August 24 2021"]
[White "Wieczorek, Oskar"]
[Black "Mezentsev, Ivan"]
[WhiteFideId "1133950"]
[BlackFideId "13706195"]
[WhiteElo "2258"]
[BlackElo "2295"]
[Result "1-0"]
[Round "08"]
[TimeControl "180+1"]
[Date "2021.08.24"]
[WhiteClock "0:00:01"]
[BlackClock "0:00:01"]

1. e4 {[%clk 0:03:00]}  d5 {[%clk 0:02:58]} 2. exd5 {[%clk 0:03:01]}  Nf6 {[%clk 0:02:58]} 3. Nf3 {[%clk 0:03:00]}  Nxd5 {[%clk 0:02:58]} 4. d4 {[%clk 0:03:01]}  g6 {[%clk 0:02:58]} 5. Be2 {[%clk 0:03:01]}  Bg7 {[%clk 0:02:58]} 6. O-O {[%clk 0:03:02]}  O-O {[%clk 0:02:58]} 7. c4 {[%clk 0:03:03]}  Nb6 {[%clk 0:02:58]} 8. Nc3 {[%clk 0:03:02]}  Nc6 {[%clk 0:02:57]} 9. Be3 {[%clk 0:02:55]}  e5 {[%clk 0:02:57]} 10. dxe5 {[%clk 0:02:44]}  Nxe5 {[%clk 0:02:56]} 11. Nxe5 {[%clk 0:02:44]}  Bxe5 {[%clk 0:02:55]} 12. c5 {[%clk 0:02:25]}  Nd7 {[%clk 0:02:24]} 13. Qd5 {[%clk 0:02:15]}  c6 {[%clk 0:02:19]} 14. Qc4 {[%clk 0:02:15]}  Nf6 {[%clk 0:02:11]} 15. Bh6 {[%clk 0:02:11]}  Re8 {[%clk 0:02:10]} 16. Rad1 {[%clk 0:02:09]}  Qe7 {[%clk 0:02:03]} 17. Rfe1 {[%clk 0:02:04]}  Be6 {[%clk 0:02:01]} 18. Qb4 {[%clk 0:01:50]}  Nd7 {[%clk 0:01:52]} 19. Bf3 {[%clk 0:01:27]}  a5 {[%clk 0:01:19]} 20. Qe4 {[%clk 0:01:10]}  Bf5 {[%clk 0:01:18]} 21. Qe3 {[%clk 0:01:03]}  Qxc5 {[%clk 0:01:11]} 22. Qc1 {[%clk 0:00:51]}  a4 {[%clk 0:00:59]} 23. a3 {[%clk 0:00:50]}  Nf6 {[%clk 0:00:57]} 24. h3 {[%clk 0:00:45]}  Bd4 {[%clk 0:00:46]} 25. Rf1 {[%clk 0:00:41]}  Ne4 {[%clk 0:00:37]} 26. Bxe4 {[%clk 0:00:28]}  Bxe4 {[%clk 0:00:37]} 27. Qf4 {[%clk 0:00:28]}  f5 {[%clk 0:00:28]} 28. Nxe4 {[%clk 0:00:22]}  Rxe4 {[%clk 0:00:27]} 29. Qd2 {[%clk 0:00:19]}  Rae8 {[%clk 0:00:24]} 30. Rc1 {[%clk 0:00:13]}  Qe5 {[%clk 0:00:20]} 31. Qc2 {[%clk 0:00:11]}  Re2 {[%clk 0:00:17]} 32. Qxa4 {[%clk 0:00:11]}  Bxb2 {[%clk 0:00:06]} 33. Rb1 {[%clk 0:00:09]}  b5 {[%clk 0:00:05]} 34. Qb3+ {[%clk 0:00:09]}  Re6 {[%clk 0:00:05]} 35. Rfd1 {[%clk 0:00:07]}  Bd4 {[%clk 0:00:05]} 36. Qd3 {[%clk 0:00:06]}  Bxf2+ {[%clk 0:00:03]} 37. Kh1 {[%clk 0:00:07]}  Qd5 {[%clk 0:00:04]} 38. Qc3 {[%clk 0:00:05]}  Qe5 {[%clk 0:00:03]} 39. Qa5 {[%clk 0:00:04]}  Bg3 {[%clk 0:00:01]} 40. Rd8+ {[%clk 0:00:04]}  Re8 {[%clk 0:00:01]} 41. Rxe8+ {[%clk 0:00:03]}  Qxe8 {[%clk 0:00:01]} 42. Bd2 {[%clk 0:00:01]} 1-0


[Site "https://www.chess.com"]

[Event "Titled Tuesday Blitz August 24 2021"]
[White "Yeletsky, Ivan"]
[Black "Kekelidze, Mikheil"]
[WhiteFideId "24180327"]
[BlackFideId "13600818"]
[WhiteElo "2344"]
[BlackElo "2387"]
[Result "1-0"]
[Round "08"]
[TimeControl "180+1"]
[Date "2021.08.24"]
[WhiteClock "0:01:19"]
[BlackClock "0:00:16"]

1. c4 {[%clk 0:03:00]}  e5 {[%clk 0:02:58]} 2. Nc3 {[%clk 0:03:00]}  Nf6 {[%clk 0:02:57]} 3. Nf3 {[%clk 0:02:59]}  Nc6 {[%clk 0:02:54]} 4. e3 {[%clk 0:03:00]}  Bb4 {[%clk 0:02:51]} 5. Qc2 {[%clk 0:02:59]}  Bxc3 {[%clk 0:02:50]} 6. bxc3 {[%clk 0:02:58]}  O-O {[%clk 0:02:49]} 7. e4 {[%clk 0:02:58]}  d6 {[%clk 0:02:47]} 8. g3 {[%clk 0:02:58]}  a6 {[%clk 0:02:47]} 9. Nh4 {[%clk 0:02:49]}  Rb8 {[%clk 0:02:44]} 10. a4 {[%clk 0:02:49]}  b6 {[%clk 0:02:40]} 11. d3 {[%clk 0:02:47]}  Be6 {[%clk 0:02:34]} 12. Be2 {[%clk 0:02:36]}  Nd7 {[%clk 0:02:32]} 13. O-O {[%clk 0:02:36]}  Ne7 {[%clk 0:02:01]} 14. a5 {[%clk 0:02:29]}  b5 {[%clk 0:01:51]} 15. cxb5 {[%clk 0:02:28]}  axb5 {[%clk 0:01:51]} 16. d4 {[%clk 0:02:28]}  c6 {[%clk 0:01:44]} 17. dxe5 {[%clk 0:02:15]}  Nxe5 {[%clk 0:01:29]} 18. f4 {[%clk 0:02:14]}  N5g6 {[%clk 0:01:25]} 19. f5 {[%clk 0:02:10]}  Nxh4 {[%clk 0:01:25]} 20. fxe6 {[%clk 0:02:11]}  Nhg6 {[%clk 0:01:24]} 21. exf7+ {[%clk 0:02:12]}  Rxf7 {[%clk 0:01:23]} 22. Rxf7 {[%clk 0:02:13]}  Kxf7 {[%clk 0:01:23]} 23. Qa2+ {[%clk 0:01:53]}  d5 {[%clk 0:01:23]} 24. Be3 {[%clk 0:01:53]}  Ne5 {[%clk 0:01:19]} 25. a6 {[%clk 0:01:47]}  Nc4 {[%clk 0:01:18]} 26. a7 {[%clk 0:01:45]}  Ra8 {[%clk 0:01:18]} 27. Bc5 {[%clk 0:01:45]}  Ng6 {[%clk 0:01:14]} 28. Rf1+ {[%clk 0:01:42]}  Kg8 {[%clk 0:01:13]} 29. exd5 {[%clk 0:01:37]}  Qxd5 {[%clk 0:01:10]} 30. Bxc4 {[%clk 0:01:37]}  bxc4 {[%clk 0:01:08]} 31. Qf2 {[%clk 0:01:37]}  h5 {[%clk 0:00:58]} 32. Qf5 {[%clk 0:01:34]}  Ne5 {[%clk 0:00:49]} 33. Bd4 {[%clk 0:01:09]}  Nd7 {[%clk 0:00:31]} 34. Qg6 {[%clk 0:01:04]}  Qxd4+ {[%clk 0:00:19]} 35. cxd4 {[%clk 0:01:03]}  Rxa7 {[%clk 0:00:19]} 36. Qd6 {[%clk 0:01:04]}  Nf6 {[%clk 0:00:17]} 37. Qe6+ {[%clk 0:01:04]}  Kh7 {[%clk 0:00:17]} 38. Qxc4 {[%clk 0:01:04]}  Rd7 {[%clk 0:00:17]} 39. Qc2+ {[%clk 0:01:04]}  Kh6 {[%clk 0:00:17]} 40. Qxc6 {[%clk 0:01:05]}  Rf7 {[%clk 0:00:16]} 41. d5 {[%clk 0:01:04]}  Kg6 {[%clk 0:00:16]} 42. Qe6 {[%clk 0:01:04]}  Rb7 {[%clk 0:00:15]} 43. d6 {[%clk 0:01:05]}  Rb6 {[%clk 0:00:14]} 44. Rxf6+ {[%clk 0:01:04]}  gxf6 {[%clk 0:00:14]} 45. Qe8+ {[%clk 0:01:05]}  Kf5 {[%clk 0:00:13]} 46. d7 {[%clk 0:01:06]}  Rb1+ {[%clk 0:00:13]} 47. Kf2 {[%clk 0:01:07]}  Rb2+ {[%clk 0:00:13]} 48. Ke1 {[%clk 0:01:07]}  Rb4 {[%clk 0:00:12]} 49. Kd2 {[%clk 0:01:08]}  Rd4+ {[%clk 0:00:12]} 50. Kc3 {[%clk 0:01:09]}  Rd6 {[%clk 0:00:12]} 51. d8=Q {[%clk 0:01:10]}  Rxd8 {[%clk 0:00:12]} 52. Qxd8 {[%clk 0:01:10]}  Kg4 {[%clk 0:00:13]} 53. Qd4+ {[%clk 0:01:11]}  Kf3 {[%clk 0:00:12]} 54. Qh4 {[%clk 0:01:12]}  f5 {[%clk 0:00:12]} 55. Qxh5+ {[%clk 0:01:13]}  Ke4 {[%clk 0:00:12]} 56. Qh4+ {[%clk 0:01:14]}  f4 {[%clk 0:00:13]} 57. Qxf4+ {[%clk 0:01:14]}  Kd5 {[%clk 0:00:14]} 58. h4 {[%clk 0:01:15]}  Ke6 {[%clk 0:00:14]} 59. h5 {[%clk 0:01:16]}  Kd5 {[%clk 0:00:15]} 60. h6 {[%clk 0:01:17]}  Ke6 {[%clk 0:00:16]} 61. h7 {[%clk 0:01:18]}  Ke7 {[%clk 0:00:15]} 62. g4 {[%clk 0:01:18]}  Ke6 {[%clk 0:00:16]} 63. g5 {[%clk 0:01:18]}  Kd5 {[%clk 0:00:16]} 64. g6 {[%clk 0:01:19]} 1-0


[Site "https://www.chess.com"]

[Event "Titled Tuesday Blitz August 24 2021"]
[White "davigator"]
[Black "Jakubowski, Krzysztof"]
[BlackFideId "1112848"]
[WhiteElo "2396"]
[BlackElo "2414"]
[Result "1-0"]
[Round "08"]
[TimeControl "180+1"]
[Date "2021.08.24"]
[WhiteClock "0:01:15"]
[BlackClock "0:00:01"]

1. e4 {[%clk 0:03:00]}  c5 {[%clk 0:02:57]} 2. Nf3 {[%clk 0:03:00]}  d6 {[%clk 0:02:57]} 3. d4 {[%clk 0:03:00]}  cxd4 {[%clk 0:02:57]} 4. Nxd4 {[%clk 0:03:00]}  Nf6 {[%clk 0:02:57]} 5. Nc3 {[%clk 0:03:00]}  a6 {[%clk 0:02:57]} 6. Bg5 {[%clk 0:03:00]}  e6 {[%clk 0:02:57]} 7. f4 {[%clk 0:03:00]}  Be7 {[%clk 0:02:56]} 8. Qf3 {[%clk 0:03:00]}  Qc7 {[%clk 0:02:55]} 9. O-O-O {[%clk 0:03:00]}  Nbd7 {[%clk 0:02:55]} 10. g4 {[%clk 0:03:00]}  Rb8 {[%clk 0:02:54]} 11. h4 {[%clk 0:02:59]}  b5 {[%clk 0:02:53]} 12. Bd3 {[%clk 0:02:59]}  b4 {[%clk 0:02:46]} 13. Nce2 {[%clk 0:02:58]}  Nc5 {[%clk 0:02:37]} 14. Kb1 {[%clk 0:02:56]}  O-O {[%clk 0:02:18]} 15. h5 {[%clk 0:02:49]}  b3 {[%clk 0:02:08]} 16. Nxb3 {[%clk 0:02:34]}  h6 {[%clk 0:01:23]} 17. Bxf6 {[%clk 0:02:33]}  Bxf6 {[%clk 0:01:24]} 18. g5 {[%clk 0:02:27]}  hxg5 {[%clk 0:01:25]} 19. fxg5 {[%clk 0:02:27]}  Bxg5 {[%clk 0:01:25]} 20. h6 {[%clk 0:02:27]}  g6 {[%clk 0:01:03]} 21. h7+ {[%clk 0:02:18]}  Kh8 {[%clk 0:01:02]} 22. Rdg1 {[%clk 0:02:17]}  Qe7 {[%clk 0:00:57]} 23. Rf1 {[%clk 0:02:12]}  e5 {[%clk 0:00:45]} 24. Rhg1 {[%clk 0:02:11]}  Ne6 {[%clk 0:00:41]} 25. Bc4 {[%clk 0:02:07]}  Nf4 {[%clk 0:00:35]} 26. Nxf4 {[%clk 0:01:58]}  Bxf4 {[%clk 0:00:36]} 27. Nc1 {[%clk 0:01:57]}  Qc7 {[%clk 0:00:29]} 28. Bb3 {[%clk 0:01:53]}  f6 {[%clk 0:00:19]} 29. Nd3 {[%clk 0:01:51]}  g5 {[%clk 0:00:19]} 30. Qh5 {[%clk 0:01:50]}  Qe7 {[%clk 0:00:12]} 31. c3 {[%clk 0:01:40]}  Be6 {[%clk 0:00:11]} 32. Nb4 {[%clk 0:01:32]}  a5 {[%clk 0:00:08]} 33. Bxe6 {[%clk 0:01:31]}  axb4 {[%clk 0:00:07]} 34. Bb3 {[%clk 0:01:30]}  bxc3 {[%clk 0:00:07]} 35. bxc3 {[%clk 0:01:31]}  Rfc8 {[%clk 0:00:06]} 36. Rf3 {[%clk 0:01:30]}  Qe6 {[%clk 0:00:06]} 37. Kc2 {[%clk 0:01:29]}  Rxb3 {[%clk 0:00:05]} 38. axb3 {[%clk 0:01:28]}  d5 {[%clk 0:00:06]} 39. Qg6 {[%clk 0:01:24]}  d4 {[%clk 0:00:03]} 40. Ra1 {[%clk 0:01:20]}  dxc3 {[%clk 0:00:01]} 41. Ra7 {[%clk 0:01:15]} 1-0


[Site "https://www.chess.com"]

[Event "Titled Tuesday Blitz August 24 2021"]
[White "Arabidze, Meri"]
[Black "Tokman, Ariel"]
[WhiteFideId "13604040"]
[BlackFideId "117420"]
[WhiteElo "2432"]
[BlackElo "2345"]
[Result "1-0"]
[Round "09"]
[TimeControl "180+1"]
[Date "2021.08.24"]
[WhiteClock "0:00:23"]
[BlackClock "0:00:04"]

1. Nf3 {[%clk 0:02:57]}  Nf6 {[%clk 0:02:58]} 2. g3 {[%clk 0:02:57]}  g6 {[%clk 0:02:57]} 3. Bg2 {[%clk 0:02:58]}  Bg7 {[%clk 0:02:58]} 4. d4 {[%clk 0:02:59]}  O-O {[%clk 0:02:58]} 5. O-O {[%clk 0:03:00]}  d5 {[%clk 0:02:59]} 6. c4 {[%clk 0:02:58]}  Nc6 {[%clk 0:02:51]} 7. cxd5 {[%clk 0:02:57]}  Nxd5 {[%clk 0:02:51]} 8. Nc3 {[%clk 0:02:57]}  Nb6 {[%clk 0:02:50]} 9. d5 {[%clk 0:02:57]}  Na5 {[%clk 0:02:49]} 10. Qc2 {[%clk 0:02:57]}  c6 {[%clk 0:02:47]} 11. dxc6 {[%clk 0:02:57]}  Nxc6 {[%clk 0:02:47]} 12. Rd1 {[%clk 0:02:58]}  Bd7 {[%clk 0:02:45]} 13. Bf4 {[%clk 0:02:50]}  e5 {[%clk 0:02:34]} 14. Be3 {[%clk 0:02:49]}  Rc8 {[%clk 0:02:02]} 15. Rac1 {[%clk 0:02:47]}  Qe8 {[%clk 0:01:29]} 16. Bc5 {[%clk 0:02:45]}  Nd4 {[%clk 0:01:22]} 17. Bxd4 {[%clk 0:02:40]}  exd4 {[%clk 0:01:22]} 18. Nxd4 {[%clk 0:02:40]}  Qe5 {[%clk 0:01:12]} 19. Nf3 {[%clk 0:02:37]}  Qa5 {[%clk 0:01:10]} 20. Qb3 {[%clk 0:02:17]}  Be6 {[%clk 0:01:09]} 21. Qc2 {[%clk 0:02:00]}  Bf5 {[%clk 0:00:48]} 22. e4 {[%clk 0:01:59]}  Be6 {[%clk 0:00:40]} 23. Nd4 {[%clk 0:01:59]}  Bg4 {[%clk 0:00:36]} 24. f3 {[%clk 0:01:59]}  Qc5 {[%clk 0:00:32]} 25. Qf2 {[%clk 0:01:58]}  Bd7 {[%clk 0:00:29]} 26. Nb3 {[%clk 0:01:58]}  Qb4 {[%clk 0:00:25]} 27. Kh1 {[%clk 0:01:47]}  Be6 {[%clk 0:00:25]} 28. Nd4 {[%clk 0:01:40]}  Bc4 {[%clk 0:00:15]} 29. a3 {[%clk 0:01:40]}  Qe7 {[%clk 0:00:14]} 30. b3 {[%clk 0:01:39]}  Ba6 {[%clk 0:00:14]} 31. b4 {[%clk 0:01:39]}  Rfd8 {[%clk 0:00:14]} 32. b5 {[%clk 0:01:26]}  Qxa3 {[%clk 0:00:14]} 33. bxa6 {[%clk 0:01:24]}  Rxc3 {[%clk 0:00:14]} 34. Ra1 {[%clk 0:01:20]}  Qc5 {[%clk 0:00:11]} 35. axb7 {[%clk 0:01:18]}  Rb8 {[%clk 0:00:07]} 36. Ra2 {[%clk 0:00:47]}  Rxb7 {[%clk 0:00:07]} 37. Rad2 {[%clk 0:00:48]}  Rb8 {[%clk 0:00:06]} 38. f4 {[%clk 0:00:45]}  Re8 {[%clk 0:00:05]} 39. e5 {[%clk 0:00:45]}  Rc4 {[%clk 0:00:05]} 40. Nc6 {[%clk 0:00:40]}  Qxf2 {[%clk 0:00:04]} 41. Rxf2 {[%clk 0:00:41]}  Bf8 {[%clk 0:00:04]} 42. Nxa7 {[%clk 0:00:40]}  Rc5 {[%clk 0:00:04]} 43. Nc6 {[%clk 0:00:37]}  Na4 {[%clk 0:00:05]} 44. Rd7 {[%clk 0:00:34]}  Nc3 {[%clk 0:00:05]} 45. h4 {[%clk 0:00:32]}  Rc8 {[%clk 0:00:05]} 46. Ne7+ {[%clk 0:00:31]}  Bxe7 {[%clk 0:00:05]} 47. Rxe7 {[%clk 0:00:31]}  Kf8 {[%clk 0:00:06]} 48. Ra7 {[%clk 0:00:31]}  R5c7 {[%clk 0:00:06]} 49. Rxc7 {[%clk 0:00:30]}  Rxc7 {[%clk 0:00:07]} 50. Kh2 {[%clk 0:00:31]}  Nb5 {[%clk 0:00:06]} 51. Rd2 {[%clk 0:00:29]}  Ke7 {[%clk 0:00:05]} 52. Kh3 {[%clk 0:00:29]}  h5 {[%clk 0:00:05]} 53. Be4 {[%clk 0:00:28]}  Na3 {[%clk 0:00:05]} 54. Ra2 {[%clk 0:00:24]}  Nc4 {[%clk 0:00:06]} 55. Rc2 {[%clk 0:00:25]}  Rc8 {[%clk 0:00:04]} 56. Bb7 {[%clk 0:00:24]}  Rc7 {[%clk 0:00:04]} 57. Ba6 {[%clk 0:00:23]}  Rc6 {[%clk 0:00:04]} 58. Bxc4 {[%clk 0:00:23]} 1-0


[Site "https://www.chess.com"]

[Event "Titled Tuesday Blitz August 24 2021"]
[White "Avramidou, Anastasia"]
[Black "Hjartarson, Johann"]
[WhiteFideId "4239873"]
[BlackFideId "2300044"]
[WhiteElo "2183"]
[BlackElo "2502"]
[Result "0-1"]
[Round "09"]
[TimeControl "180+1"]
[Date "2021.08.24"]
[WhiteClock "0:00:13"]
[BlackClock "0:00:45"]

1. Nf3 {[%clk 0:03:00]}  d6 {[%clk 0:02:59]} 2. d4 {[%clk 0:03:00]}  Bg4 {[%clk 0:02:58]} 3. Nc3 {[%clk 0:02:57]}  Nf6 {[%clk 0:02:57]} 4. e4 {[%clk 0:02:56]}  e6 {[%clk 0:02:56]} 5. Be2 {[%clk 0:02:54]}  Be7 {[%clk 0:02:55]} 6. Be3 {[%clk 0:02:55]}  O-O {[%clk 0:02:52]} 7. h3 {[%clk 0:02:49]}  Bh5 {[%clk 0:02:52]} 8. g4 {[%clk 0:02:42]}  Bg6 {[%clk 0:02:51]} 9. Nd2 {[%clk 0:02:41]}  d5 {[%clk 0:02:37]} 10. e5 {[%clk 0:02:38]}  Nfd7 {[%clk 0:02:36]} 11. f4 {[%clk 0:02:35]}  c5 {[%clk 0:02:32]} 12. Nf3 {[%clk 0:02:36]}  Nc6 {[%clk 0:02:29]} 13. dxc5 {[%clk 0:02:34]}  Bxc5 {[%clk 0:02:23]} 14. Bxc5 {[%clk 0:02:21]}  Nxc5 {[%clk 0:02:23]} 15. O-O {[%clk 0:02:18]}  f6 {[%clk 0:02:01]} 16. Qd2 {[%clk 0:02:08]}  fxe5 {[%clk 0:01:59]} 17. fxe5 {[%clk 0:02:01]}  Qb6 {[%clk 0:01:54]} 18. Kh2 {[%clk 0:01:48]}  Ne4 {[%clk 0:01:48]} 19. Qc1 {[%clk 0:01:16]}  Nd4 {[%clk 0:01:32]} 20. Na4 {[%clk 0:00:43]}  Qc7 {[%clk 0:01:31]} 21. Qe3 {[%clk 0:00:34]}  Nxf3+ {[%clk 0:01:22]} 22. Bxf3 {[%clk 0:00:35]}  Qxe5+ {[%clk 0:01:22]} 23. Kg1 {[%clk 0:00:33]}  Qg3+ {[%clk 0:01:21]} 24. Kh1 {[%clk 0:00:33]}  Qxh3+ {[%clk 0:01:20]} 25. Kg1 {[%clk 0:00:33]}  Qg3+ {[%clk 0:01:14]} 26. Kh1 {[%clk 0:00:33]}  Rf4 {[%clk 0:01:11]} 27. Qe2 {[%clk 0:00:13]}  Raf8 {[%clk 0:01:01]} 28. Bg2 {[%clk 0:00:13]}  Rf2 {[%clk 0:00:45]} 0-1


[Site "https://www.chess.com"]

[Event "Titled Tuesday Blitz August 24 2021"]
[White "Baches Garcia, Guillermo"]
[Black "FGHSMN"]
[WhiteFideId "2209764"]
[WhiteElo "2504"]
[BlackElo "2711"]
[Result "1/2-1/2"]
[Round "09"]
[TimeControl "180+1"]
[Date "2021.08.24"]
[WhiteClock "0:00:03"]
[BlackClock "0:00:04"]

1. e4 {[%clk 0:03:00]}  c5 {[%clk 0:02:58]} 2. Nf3 {[%clk 0:03:01]}  e6 {[%clk 0:02:58]} 3. c4 {[%clk 0:02:59]}  a6 {[%clk 0:02:57]} 4. Nc3 {[%clk 0:02:59]}  Qc7 {[%clk 0:02:56]} 5. Be2 {[%clk 0:02:58]}  Nf6 {[%clk 0:02:55]} 6. O-O {[%clk 0:02:55]}  d6 {[%clk 0:02:53]} 7. d4 {[%clk 0:02:52]}  cxd4 {[%clk 0:02:52]} 8. Nxd4 {[%clk 0:02:53]}  Be7 {[%clk 0:02:53]} 9. Be3 {[%clk 0:02:51]}  O-O {[%clk 0:02:52]} 10. f3 {[%clk 0:02:50]}  b6 {[%clk 0:02:53]} 11. Qd2 {[%clk 0:02:46]}  Bb7 {[%clk 0:02:52]} 12. Rfc1 {[%clk 0:02:41]}  Nbd7 {[%clk 0:02:51]} 13. a4 {[%clk 0:02:41]}  Rac8 {[%clk 0:02:49]} 14. a5 {[%clk 0:02:40]}  bxa5 {[%clk 0:02:48]} 15. Nb3 {[%clk 0:02:40]}  Rfe8 {[%clk 0:02:41]} 16. Nxa5 {[%clk 0:02:40]}  Ba8 {[%clk 0:02:41]} 17. b4 {[%clk 0:02:34]}  Qb8 {[%clk 0:02:29]} 18. Na4 {[%clk 0:02:21]}  Bd8 {[%clk 0:02:13]} 19. Nb2 {[%clk 0:01:55]}  Bc7 {[%clk 0:02:13]} 20. h3 {[%clk 0:01:47]}  d5 {[%clk 0:02:08]} 21. exd5 {[%clk 0:01:42]}  exd5 {[%clk 0:02:09]} 22. c5 {[%clk 0:01:38]}  d4 {[%clk 0:01:54]} 23. Bg5 {[%clk 0:01:01]}  Nh5 {[%clk 0:01:38]} 24. f4 {[%clk 0:00:26]}  Nxf4 {[%clk 0:01:31]} 25. Bxa6 {[%clk 0:00:25]}  Nxg2 {[%clk 0:00:37]} 26. c6 {[%clk 0:00:25]}  Ne5 {[%clk 0:00:24]} 27. Qxg2 {[%clk 0:00:22]}  Bxa5 {[%clk 0:00:17]} 28. Bxc8 {[%clk 0:00:20]}  Rxc8 {[%clk 0:00:15]} 29. Bf6 {[%clk 0:00:19]}  Ng6 {[%clk 0:00:12]} 30. Bxd4 {[%clk 0:00:19]}  Bxb4 {[%clk 0:00:11]} 31. Nd3 {[%clk 0:00:18]}  Bd6 {[%clk 0:00:10]} 32. Rab1 {[%clk 0:00:17]}  Qc7 {[%clk 0:00:09]} 33. Bc5 {[%clk 0:00:14]}  Bxc5+ {[%clk 0:00:04]} 34. Rxc5 {[%clk 0:00:12]}  Bxc6 {[%clk 0:00:04]} 35. Rxc6 {[%clk 0:00:12]}  Qxc6 {[%clk 0:00:04]} 36. Qxc6 {[%clk 0:00:11]}  Rxc6 {[%clk 0:00:04]} 37. Rb8+ {[%clk 0:00:10]}  Nf8 {[%clk 0:00:05]} 38. Ne5 {[%clk 0:00:10]}  Rd6 {[%clk 0:00:04]} 39. Nc4 {[%clk 0:00:11]}  Rd1+ {[%clk 0:00:03]} 40. Kf2 {[%clk 0:00:10]}  g6 {[%clk 0:00:04]} 41. Ne5 {[%clk 0:00:10]}  Rd5 {[%clk 0:00:02]} 42. Nc6 {[%clk 0:00:10]}  Kg7 {[%clk 0:00:03]} 43. Kf3 {[%clk 0:00:10]}  Rd6 {[%clk 0:00:03]} 44. Ne7 {[%clk 0:00:09]}  Nd7 {[%clk 0:00:03]} 45. Rb7 {[%clk 0:00:05]}  Ne5+ {[%clk 0:00:03]} 46. Ke4 {[%clk 0:00:05]}  Re6 {[%clk 0:00:03]} 47. Kd5 {[%clk 0:00:04]}  Nf3 {[%clk 0:00:02]} 48. Nc6 {[%clk 0:00:04]}  Ng5 {[%clk 0:00:02]} 49. Ne5 {[%clk 0:00:04]}  Nxh3 {[%clk 0:00:01]} 50. Rxf7+ {[%clk 0:00:02]}  Kg8 {[%clk 0:00:01]} 51. Kxe6 {[%clk 0:00:03]}  Ng5+ {[%clk 0:00:01]} 52. Ke7 {[%clk 0:00:03]}  Nxf7 {[%clk 0:00:02]} 53. Nxf7 {[%clk 0:00:03]}  Kg7 {[%clk 0:00:03]} 54. Ke6 {[%clk 0:00:04]}  h5 {[%clk 0:00:02]} 55. Ng5 {[%clk 0:00:03]}  Kh6 {[%clk 0:00:02]} 56. Kf6 {[%clk 0:00:04]}  h4 {[%clk 0:00:03]} 57. Nh3 {[%clk 0:00:03]}  Kh5 {[%clk 0:00:04]} 58. Ng5 {[%clk 0:00:03]}  Kh6 {[%clk 0:00:02]} 59. Nh3 {[%clk 0:00:03]}  Kh5 {[%clk 0:00:03]} 60. Ng5 {[%clk 0:00:03]}  Kg4 {[%clk 0:00:03]} 61. Kxg6 {[%clk 0:00:03]}  Kg3 {[%clk 0:00:03]} 62. Kh5 {[%clk 0:00:03]}  h3 {[%clk 0:00:04]} 63. Nxh3 {[%clk 0:00:03]} 1/2-1/2


[Site "https://www.chess.com"]

[Event "Titled Tuesday Blitz August 24 2021"]
[White "Biletskiy, Danylo"]
[Black "Martin, Lewis"]
[WhiteFideId "14155419"]
[BlackFideId "410551"]
[WhiteElo "2099"]
[BlackElo "2145"]
[Result "1-0"]
[Round "09"]
[TimeControl "180+1"]
[Date "2021.08.24"]
[WhiteClock "0:01:02"]
[BlackClock "0:00:17"]

1. e4 {[%clk 0:03:00]}  c5 {[%clk 0:02:59]} 2. Nf3 {[%clk 0:03:00]}  d6 {[%clk 0:03:00]} 3. d4 {[%clk 0:02:58]}  cxd4 {[%clk 0:03:01]} 4. Nxd4 {[%clk 0:02:59]}  Nf6 {[%clk 0:03:01]} 5. Nc3 {[%clk 0:02:57]}  a6 {[%clk 0:03:01]} 6. Bg5 {[%clk 0:02:56]}  e6 {[%clk 0:03:02]} 7. f4 {[%clk 0:02:51]}  b5 {[%clk 0:03:02]} 8. Qf3 {[%clk 0:02:48]}  Bb7 {[%clk 0:03:00]} 9. O-O-O {[%clk 0:02:48]}  Nbd7 {[%clk 0:02:59]} 10. a3 {[%clk 0:02:41]}  Be7 {[%clk 0:02:58]} 11. g4 {[%clk 0:02:41]}  Rc8 {[%clk 0:02:57]} 12. Bxf6 {[%clk 0:02:39]}  Nxf6 {[%clk 0:02:56]} 13. g5 {[%clk 0:02:39]}  Nd7 {[%clk 0:02:56]} 14. f5 {[%clk 0:02:35]}  Ne5 {[%clk 0:02:48]} 15. Qg3 {[%clk 0:02:28]}  Bxg5+ {[%clk 0:02:44]} 16. Kb1 {[%clk 0:02:27]}  Bf6 {[%clk 0:02:42]} 17. fxe6 {[%clk 0:02:26]}  O-O {[%clk 0:02:33]} 18. exf7+ {[%clk 0:02:24]}  Rxf7 {[%clk 0:02:33]} 19. Bh3 {[%clk 0:02:25]}  Rxc3 {[%clk 0:02:29]} 20. Qxc3 {[%clk 0:02:23]}  Bxe4 {[%clk 0:02:26]} 21. Rhe1 {[%clk 0:02:21]}  Bd5 {[%clk 0:02:22]} 22. Ne6 {[%clk 0:02:19]}  Qa8 {[%clk 0:01:43]} 23. Rxd5 {[%clk 0:02:13]}  Nc4 {[%clk 0:01:43]} 24. Nd4 {[%clk 0:02:00]}  Qxd5 {[%clk 0:01:36]} 25. Re8+ {[%clk 0:01:58]}  Rf8 {[%clk 0:01:35]} 26. Be6+ {[%clk 0:01:58]}  Qxe6 {[%clk 0:01:33]} 27. Rxf8+ {[%clk 0:01:58]}  Kxf8 {[%clk 0:01:33]} 28. Nxe6+ {[%clk 0:01:59]}  Ke7 {[%clk 0:01:33]} 29. Qe1 {[%clk 0:01:57]}  Kd7 {[%clk 0:01:05]} 30. Nf4 {[%clk 0:01:50]}  Bxb2 {[%clk 0:01:02]} 31. Qe6+ {[%clk 0:01:47]}  Kc7 {[%clk 0:01:00]} 32. Nd5+ {[%clk 0:01:47]}  Kc6 {[%clk 0:00:58]} 33. Nb4+ {[%clk 0:01:46]}  Kb6 {[%clk 0:00:57]} 34. Qd5 {[%clk 0:01:38]}  Bxa3 {[%clk 0:00:52]} 35. Qc6+ {[%clk 0:01:36]}  Ka5 {[%clk 0:00:51]} 36. Nd3 {[%clk 0:01:28]}  Nb6 {[%clk 0:00:28]} 37. Qc3+ {[%clk 0:01:22]}  b4 {[%clk 0:00:27]} 38. Qc7 {[%clk 0:01:19]}  Kb5 {[%clk 0:00:24]} 39. Qxd6 {[%clk 0:01:07]}  a5 {[%clk 0:00:21]} 40. Qc5+ {[%clk 0:01:05]}  Ka6 {[%clk 0:00:20]} 41. Qc6 {[%clk 0:01:03]}  Ka7 {[%clk 0:00:17]} 42. Nc5 {[%clk 0:01:02]} 1-0


[Site "https://www.chess.com"]